lending/lending_fUSD_20260306
["ID","MTS","AMOUNT","RATE_DAILY","PERIOD"]
[407799084,1772808648633,-2500.0,0.00026844,2]
[407799085,1772808648643,-1000.0,0.00026844,2]
[407799086,1772808648652,-2500.0,0.00026844,2]
[407799087,1772808648662,-1000.0,0.00026844,2]
[407799088,1772808648671,-250.0,0.00026844,2]
[407799089,1772808648680,-2500.0,0.00026844,2]
[407799090,1772808648690,-271.67882507,0.00026844,2]
[407799091,1772808648699,-1000.0,0.00026844,2]
[407799092,1772808648709,-3000.0,0.00026844,2]
[407799093,1772808648718,-250.0,0.00026844,2]
[407799094,1772808648727,-250.0,0.00026844,2]
[407799095,1772808648737,-2500.0,0.00026844,2]
[407799096,1772808648747,-1000.0,0.00026844,2]
[407799097,1772808648756,-250.0,0.00026844,2]
[407799098,1772808648766,-3000.0,0.00026844,2]
[407799099,1772808648776,-250.0,0.00026844,2]
[407799100,1772808648788,-2500.0,0.00026844,2]
[407799101,1772808648797,-1000.0,0.00026844,2]
[407799102,1772808648807,-3000.0,0.00026844,2]
[407799103,1772808648816,-250.0,0.00026844,2]
[407799104,1772808648826,-250.0,0.00026844,2]
[407799105,1772808648835,-2500.0,0.00026844,2]
[407799106,1772808648845,-3000.0,0.00026844,2]
[407799107,1772808648854,-250.0,0.00026844,2]
[407799108,1772808648863,-250.0,0.00026844,2]
[407799109,1772808648873,-2500.0,0.00026844,2]
[407799110,1772808648883,-721.12765535,0.00026844,2]
[407799111,1772808648898,-3000.0,0.00026844,2]
[407799112,1772808648907,-250.0,0.00026844,2]
[407799113,1772808648917,-250.0,0.00026844,2]
[407799114,1772808648929,-3000.0,0.00026844,2]
[407799115,1772808648939,-250.0,0.00026844,2]
[407799116,1772808648949,-250.0,0.00026844,2]
[407799117,1772808648960,-3000.0,0.00026844,2]
[407799118,1772808648969,-250.0,0.00026844,2]
[407799119,1772808648979,-250.0,0.00026844,2]
[407799120,1772808648989,-3000.0,0.00026844,2]
[407799121,1772808648998,-250.0,0.00026844,2]
[407799122,1772808649008,-250.0,0.00026844,2]
[407799123,1772808649018,-250.0,0.00026844,2]
[407799124,1772808649028,-250.0,0.00026844,2]
[407799125,1772808649038,-578.20924308,0.00026844,2]
[407799126,1772808649047,-1000.0,0.00026844,2]
[407799127,1772808649058,-1000.0,0.00026844,2]
[407799128,1772808649067,-1000.0,0.00026844,2]
[407799129,1772808649078,-3000.0,0.00026844,2]
[407799130,1772808649089,-3000.0,0.00026844,2]
[407799131,1772808649099,-174.61919141,0.00026844,2]
[407799132,1772808649108,-1000.0,0.00026844,2]
[407799133,1772808649117,-3000.0,0.00026844,2]
[407799134,1772808649129,-1000.0,0.00026844,2]
[407799135,1772808649140,-1000.0,0.00026844,2]
[407799136,1772808649151,-3000.0,0.00026844,2]
[407799137,1772808649161,-1000.0,0.00026844,2]
[407799138,1772808649172,-3000.0,0.00026844,2]
[407799139,1772808649182,-1000.0,0.00026844,2]
[407799140,1772808649193,-3000.0,0.00026844,2]
[407799141,1772808649203,-1000.0,0.00026844,2]
[407799142,1772808649213,-3000.0,0.00026844,2]
[407799143,1772808649223,-1000.0,0.00026844,2]
[407799144,1772808649232,-3000.0,0.00026844,2]
[407799145,1772808649242,-1000.0,0.00026844,2]
[407799146,1772808649252,-3000.0,0.00026844,2]
[407799147,1772808649261,-938.21883186,0.00026844,2]
[407799148,1772808649270,-3000.0,0.00026844,2]
[407799149,1772808649281,-3000.0,0.00026844,2]
[407799150,1772808649290,-151.0,0.00026844,2]
[407799151,1772808649299,-693.3919763,0.00026844,2]
[407799152,1772808649309,-500.0,0.00026844,2]
[407799153,1772808649318,-503.01170887,0.00026844,2]
[407799154,1772808649328,-500.0,0.00026844,2]
[407799155,1772808649339,-500.0,0.00026844,2]
[407799156,1772808649349,-500.0,0.00026844,2]
[407799157,1772808649360,-500.0,0.00026844,2]
[407799158,1772808649369,-500.0,0.00026844,2]
[407799159,1772808649379,-500.0,0.00026844,2]
[407799160,1772808649388,-500.0,0.00026844,2]
[407799161,1772808649398,-250.0,0.00026844,2]
[407799162,1772808649407,-500.0,0.00026844,2]
[407799163,1772808649417,-151.0,0.00026844,2]
[407799164,1772808649426,-3000.0,0.00026844,2]
[407799165,1772808649436,-3000.0,0.00026844,2]
[407799166,1772808649445,-3000.0,0.00026844,2]
[407799167,1772808649455,-3000.0,0.00026844,2]
[407799168,1772808649464,-3000.0,0.00026844,2]
[407799169,1772808649474,-500.0,0.00026844,2]
[407799170,1772808649483,-3000.0,0.00026844,2]
[407799171,1772808649492,-3000.0,0.00026844,2]
[407799172,1772808649502,-500.0,0.00026844,2]
[407799173,1772808649512,-3000.0,0.00026844,2]
[407799174,1772808649521,-3000.0,0.00026844,2]
[407799175,1772808649533,-3000.0,0.00026844,2]
[407799176,1772808649542,-3000.0,0.00026844,2]
[407799177,1772808649551,-262.90206542,0.00026844,2]
[407799178,1772808649561,-269.917619,0.00026844,2]
[407799179,1772808649570,-743.50770149,0.00026844,2]
[407799180,1772808649580,-9000.0,0.00026899,2]
[407799181,1772808649590,-151.0,0.00026899,2]
[407799182,1772808649600,-719.04747942,0.00026899,2]
[407799183,1772808649610,-1132.86,0.000269,14]
[407799184,1772808649620,-500.0,0.00026925,2]
[407799185,1772808649631,-9000.0,0.00026954,2]
[407799186,1772808649642,-151.0,0.00026954,2]
[407799187,1772808649651,-745.65223616,0.00026954,2]
[407799188,1772808649661,-856.473003,0.00027,2]
[407799189,1772808649671,-1996.54030927,0.00027,14]
[407799190,1772808649681,-160.0,0.00027,30]
[407799191,1772808649692,-151.0,0.00027009,2]
[407799192,1772808649701,-773.2413689,0.00027009,2]
[407799193,1772808649711,-151.0,0.00027064,2]
[407799194,1772808649720,-801.85129955,0.00027064,2]
[407799195,1772808649730,-500.0,0.00027076,120]
[407799196,1772808649739,-151.0,0.00027119,2]
[407799197,1772808649748,-831.51979763,0.00027119,2]
[407799198,1772808649758,-151.0,0.00027174,2]
[407799199,1772808649767,-862.28603014,0.00027174,2]
[407799200,1772808649779,-151.0,0.00027229,2]
[407799201,1772808649788,-894.19061326,0.00027229,2]
[407799202,1772808649797,-300.19989737,0.00027284,2]
[407799203,1772808649807,-927.27566595,0.00027284,2]
[407799204,1772808649818,-961.58486559,0.00027339,2]
[407799205,1772808649829,-8155.91480387,0.0002739,2]
[407799206,1772808649843,-4442.05230728,0.0002739,7]
[407799207,1772808649854,-181.08010149,0.00027392,2]
[407799208,1772808649864,-151.0,0.00027392,2]
[407799209,1772808649874,-272.62944185,0.00027392,2]
[407799210,1772808649886,-279.9045709,0.00027392,2]
[407799211,1772808649898,-157.89950536,0.00027392,2]
[407799212,1772808649908,-997.16350561,0.00027394,2]
[407799213,1772808649918,-2000.0,0.00027397,12]
[407799214,1772808649930,-3259.0,0.00027397,120]
[407799215,1772808649940,-1040.45580562,0.00027397,120]
[407799216,1772808649949,-303.40793657,0.00027397,7]
[407799217,1772808649959,-150.0,0.00027397,7]
[407799218,1772808649969,-2500.0,0.00027397,5]
[407799219,1772808649980,-300.0,0.00027397,2]
[407799220,1772808649989,-1000.0,0.00027397,20]
[407799221,1772808649999,-394.543265,0.00027397,2]
[407799222,1772808650010,-394.543265,0.00027397,2]
[407799223,1772808650020,-394.543265,0.00027397,2]
[407799224,1772808650030,-394.543265,0.00027397,2]
[407799225,1772808650040,-151.0,0.00027397,2]
[407799226,1772808650050,-151.0,0.00027397,2]
[407799227,1772808650060,-204.253231,0.00027397,2]
[407799228,1772808650069,-151.0,0.00027397,2]
[407799229,1772808650079,-21381.87,0.00027397,10]
[407799230,1772808650088,-17818.23,0.00027397,10]
[407799231,1772808650098,-212.42196071,0.00027397,4]
[407799232,1772808650108,-160.40996513,0.00027397,5]
[407799233,1772808650117,-530.48508974,0.00027397,5]
[407799234,1772808650127,-150.0,0.00027397,5]
[407799235,1772808650137,-3595.63,0.000274,7]
[407799236,1772808650146,-4373.34,0.000274,7]
[407799237,1772808650157,-825.0,0.0002743,60]
[407799238,1772808650166,-1000.0,0.000275,7]
[407799239,1772808650176,-160.0,0.00027703,3]
[407799240,1772808650185,-500.0,0.00027733,15]
[407799241,1772808650195,-187.78006525,0.0002794,2]
[407799242,1772808650205,-151.0,0.0002794,2]
[407799243,1772808650214,-282.71673119,0.0002794,2]
[407799244,1772808650224,-250.0,0.00027945,5]
[407799245,1772808650233,-939.97,0.00027984,30]
[407799246,1772808650243,-51089.92023293,0.00028,2]
[407799247,1772808650252,-936.13,0.00028,15]
[407799248,1772808650261,-160.0,0.00028,7]
[407799249,1772808650271,-643.0,0.00028,2]
[407799250,1772808650280,-151.0,0.00028,2]
[407799251,1772808650290,-151.0,0.00028,7]
[407799252,1772808650299,-156.828356,0.00028,7]
[407799253,1772808650309,-151.0,0.00028,7]
[407799254,1772808650318,-151.0,0.00028,7]
[407799255,1772808650328,-151.0,0.00028,7]
[407799256,1772808650337,-765.469895,0.00028,7]
[407799257,1772808650347,-765.469895,0.00028,7]
[407799258,1772808650356,-765.469895,0.00028,7]
[407799259,1772808650366,-765.469895,0.00028,7]
[407799260,1772808650375,-150.0,0.00028421,2]
[407799261,1772808650385,-1005.8377805,0.00028421,2]
[407799262,1772808650394,-194.72792766,0.00028488,2]
[407799263,1772808650404,-151.0,0.00028488,2]
[407799264,1772808650413,-262.90206542,0.00028488,2]
[407799265,1772808650423,-166.34,0.00028493,2]
[407799266,1772808650432,-480.49204324,0.00028493,5]
[407799267,1772808650442,-171.43380902,0.00028514,2]
[407799268,1772808650451,-500.0,0.00028565,16]
[407799269,1772808650461,-1315.0529832,0.00028646,15]
[407799270,1772808650471,-3354.0,0.000287,5]
[407799271,1772808650481,-3172.0,0.000287,5]
[407799272,1772808650490,-3461.0,0.000287,5]
[407799273,1772808650500,-3098.38051652,0.00028736,28]
[407799274,1772808650510,-2500.0,0.00028767,5]
[407799275,1772808650519,-151.0,0.000288,3]
[407799276,1772808650531,-1515.0,0.000288,3]
[407799277,1772808650541,-1515.0,0.000288,3]
[407799278,1772808650552,-151.0,0.000288,3]
[407799279,1772808650563,-151.0,0.000288,3]
[407799280,1772808650573,-1515.0,0.000288,3]
[407799281,1772808650583,-151.0,0.000288,3]
[407799282,1772808650593,-151.0,0.000288,3]
[407799283,1772808650603,-151.0,0.000288,3]
[407799284,1772808650612,-151.0,0.000288,3]
[407799285,1772808650622,-864.0,0.000288,3]
[407799286,1772808650631,-151.0,0.000288,3]
[407799287,1772808650642,-151.0,0.000288,3]
[407799288,1772808650652,-151.0,0.000288,3]
[407799289,1772808650662,-152.0,0.000288,3]
[407799290,1772808650671,-151.0,0.000288,3]
[407799291,1772808650681,-152.0,0.000288,3]
[407799292,1772808650691,-151.0,0.000288,3]
[407799293,1772808650700,-151.0,0.000288,3]
[407799294,1772808650711,-151.0,0.000288,3]
[407799295,1772808650720,-152.0,0.000288,3]
[407799296,1772808650730,-864.0,0.000288,3]
[407799297,1772808650740,-1515.0,0.000288,3]
[407799298,1772808650750,-1515.0,0.000288,3]
[407799299,1772808650759,-1515.0,0.000288,3]
[407799300,1772808650769,-1515.0,0.000288,3]
[407799301,1772808650781,-1515.0,0.000288,3]
[407799302,1772808650791,-1515.0,0.000288,3]
[407799303,1772808650801,-1515.0,0.000288,3]
[407799304,1772808650811,-1515.0,0.000288,3]
[407799305,1772808650821,-1515.0,0.000288,3]
[407799306,1772808650831,-1515.0,0.000288,3]
[407799307,1772808650840,-1515.0,0.000288,3]
[407799308,1772808650850,-1515.0,0.000288,3]
[407799309,1772808650860,-1515.0,0.000288,3]
[407799310,1772808650869,-1515.0,0.000288,3]
[407799311,1772808650880,-1515.0,0.000288,3]
[407799312,1772808650891,-1515.0,0.000288,3]
[407799313,1772808650902,-1515.0,0.000288,3]
[407799314,1772808650912,-1515.0,0.000288,3]
[407799315,1772808650923,-1515.0,0.000288,3]
[407799316,1772808650932,-1515.0,0.000288,3]
[407799317,1772808650943,-1515.0,0.000288,3]
[407799318,1772808650952,-1515.0,0.000288,3]
[407799319,1772808650963,-1515.0,0.000288,3]
[407799320,1772808650972,-1515.0,0.000288,3]
[407799321,1772808650982,-1515.0,0.000288,3]
[407799322,1772808650992,-1515.0,0.000288,3]
[407799323,1772808651001,-1515.0,0.000288,3]
[407799324,1772808651113,-1515.0,0.000288,3]
[407799325,1772808651122,-1515.0,0.000288,3]
[407799326,1772808651132,-1515.0,0.000288,3]
[407799327,1772808651141,-1515.0,0.000288,3]
[407799328,1772808651155,-1515.0,0.000288,3]
[407799329,1772808651164,-1515.0,0.000288,3]
[407799330,1772808651174,-1515.0,0.000288,3]
[407799331,1772808651183,-150.0,0.00028803,2]
[407799332,1772808651193,-150.0,0.00028803,2]
[407799333,1772808651202,-150.0,0.00028803,2]
[407799334,1772808651211,-150.0,0.00028803,2]
[407799335,1772808651220,-150.0,0.00028803,2]
[407799336,1772808651230,-150.0,0.00028803,2]
[407799337,1772808651239,-150.0,0.00028803,2]
[407799338,1772808651248,-150.0,0.00028803,2]
[407799339,1772808651257,-150.0,0.00028803,2]
[407799340,1772808651266,-1042.0,0.00028803,2]
[407799341,1772808651275,-619.0,0.00028803,2]
[407799342,1772808651285,-1341.0,0.00028803,2]
[407799343,1772808651295,-150.0,0.00028803,2]
[407799344,1772808651304,-1279.0,0.00028803,2]
[407799345,1772808651313,-332.673,0.00028803,2]
[407799346,1772808651323,-3746.0,0.00028803,2]
[407799347,1772808651333,-20005.18613638,0.000289,4]
[407799348,1772808651342,-4373.34,0.000289,7]
[407799349,1772808651351,-180.39529822,0.00028903,2]
[407799350,1772808651361,-3595.63,0.00029,7]
[407799351,1772808651370,-201.93286099,0.00029036,2]
[407799352,1772808651379,-151.0,0.00029036,2]
[407799353,1772808651388,-500.0,0.00029176,120]
[407799354,1772808651397,-25540.355415,0.0002926,30]
[407799355,1772808651406,-500.0,0.0002926,2]
[407799356,1772808651415,-250.0,0.00029335,2]
[407799357,1772808651424,-270.08634337,0.00029421,18]
[407799358,1772808651433,-151.0,0.00029576,7]
[407799359,1772808651443,-151.0,0.00029576,7]
[407799360,1772808651453,-151.0,0.00029576,7]
[407799361,1772808651462,-220.289661,0.00029576,7]
[407799362,1772808651472,-721.12765535,0.00029583,2]
[407799363,1772808651481,-599.60298507,0.00029583,2]
[407799364,1772808651490,-1000.0,0.00029583,2]
[407799365,1772808651499,-209.40437684,0.00029584,2]
[407799366,1772808651508,-151.0,0.00029584,2]
[407799367,1772808651518,-171.46,0.00029619,7]
[407799368,1772808651527,-171.46,0.00029619,7]
[407799369,1772808651538,-171.46,0.00029619,7]
[407799370,1772808651547,-171.48,0.00029619,7]
[407799371,1772808651556,-19241.867626,0.00029636,30]
[407799372,1772808651565,-200.0,0.00029731,14]
[407799373,1772808651575,-324.75878306,0.0002984,10]
[407799374,1772808651584,-151.0,0.00029841,7]
[407799375,1772808651594,-151.0,0.00029841,7]
[407799376,1772808651603,-203.715156,0.00029841,7]
[407799377,1772808651612,-151.0,0.00029841,7]
[407799378,1772808651621,-151.0,0.00029841,7]
[407799379,1772808651630,-201.691028,0.00029841,7]
[407799380,1772808651640,-152.619756,0.00029841,7]
[407799381,1772808651649,-151.0,0.00029841,7]
[407799382,1772808651658,-151.0,0.00029841,7]
[407799383,1772808651669,-151.0,0.00029841,7]
[407799384,1772808651679,-1740.386261,0.00029841,7]
[407799385,1772808651688,-1740.386261,0.00029841,7]
[407799386,1772808651698,-1740.386261,0.00029841,7]
[407799387,1772808651708,-1740.386261,0.00029841,7]
[407799388,1772808651718,-151.0,0.00029896,7]
[407799389,1772808651727,-151.0,0.00029899,7]
[407799390,1772808651737,-79303.86601229,0.000299,2]
[407799391,1772808651746,-825.0,0.00029906,60]
[407799392,1772808651755,-57306.98858547,0.0002999,30]
[407799393,1772808651764,-67199.38591669,0.0003,5]
[407799394,1772808651774,-10000.0,0.0003,10]
[407799395,1772808651784,-1544.20872838,0.0003,3]
[407799396,1772808651793,-1186.40001992,0.0003,7]
[407799397,1772808651803,-1563.86453971,0.0003,2]
[407799398,1772808651813,-18548.10598567,0.0003,2]
[407799399,1772808651822,-9500.0,0.0003,3]
[407799400,1772808651831,-19974.81059927,0.0003,2]
[407799401,1772808651841,-2000.0,0.0003,14]
[407799402,1772808651850,-1219.30618,0.0003,120]
[407799403,1772808651859,-160.0,0.0003,10]
[407799404,1772808651868,-160.0,0.0003,30]
[407799405,1772808651877,-13927.56386165,0.0003013,2]
[407799406,1772808651888,-7773.83602278,0.0003013,2]
[407799407,1772808651901,-217.15233878,0.00030132,2]
[407799408,1772808651910,-151.0,0.00030132,2]
[407799409,1772808651919,-2073.90204719,0.00030136,22]
[407799410,1772808651929,-151.0,0.00030137,7]
[407799411,1772808651939,-151.0,0.00030137,7]
[407799412,1772808651948,-192.61,0.00030137,2]
[407799413,1772808651957,-171.46,0.00030167,7]
[407799414,1772808651967,-171.46,0.00030167,7]
[407799415,1772808651976,-171.46,0.00030167,7]
[407799416,1772808651986,-171.48,0.00030167,7]
[407799417,1772808651995,-3250.36228306,0.00030197,32]
[407799418,1772808652004,-15621.16242939,0.000302,2]
[407799419,1772808652014,-2803.0,0.0003028,3]
[407799420,1772808652023,-4373.34,0.000303,7]
[407799421,1772808652032,-2000.0,0.000303,2]
[407799422,1772808652041,-199.92,0.00030411,120]
[407799423,1772808652050,-1102.1,0.00030414,60]
[407799424,1772808652059,-225.18697532,0.0003068,2]
[407799425,1772808652068,-151.0,0.0003068,2]
[407799426,1772808652077,-171.46,0.00030715,7]
[407799427,1772808652087,-171.46,0.00030715,7]
[407799428,1772808652096,-171.46,0.00030715,7]
[407799429,1772808652105,-171.48,0.00030715,7]
[407799430,1772808652114,-3595.63,0.000308,7]
[407799431,1772808652123,-939.97,0.0003092,30]
[407799432,1772808652133,-230.01551998,0.00030948,34]
[407799433,1772808652142,-51845.85233272,0.00031,2]
[407799434,1772808652152,-186.4015376,0.00031,30]
[407799435,1772808652161,-233.51889341,0.00031228,2]
[407799436,1772808652170,-151.0,0.00031228,2]
[407799437,1772808652179,-847.0,0.00031257,3]
[407799438,1772808652188,-19890.27082099,0.0003143,4]
[407799439,1772808652197,-3548.13654985,0.00031659,36]
[407799440,1772808652206,-242.15909246,0.00031776,2]
[407799441,1772808652215,-151.0,0.00031776,2]
[407799442,1772808652225,-150.0,0.00031803,2]
[407799443,1772808652235,-150.0,0.00031803,2]
[407799444,1772808652244,-150.0,0.00031803,2]
[407799445,1772808652253,-150.0,0.00031803,2]
[407799446,1772808652263,-150.0,0.00031803,2]
[407799447,1772808652271,-150.0,0.00031803,2]
[407799448,1772808652281,-150.0,0.00031803,2]
[407799449,1772808652290,-150.0,0.00031803,2]
[407799450,1772808652299,-1042.0,0.00031803,2]
[407799451,1772808652309,-619.0,0.00031803,2]
[407799452,1772808652318,-1341.0,0.00031803,2]
[407799453,1772808652327,-150.0,0.00031803,2]
[407799454,1772808652336,-1279.0,0.00031803,2]
[407799455,1772808652346,-3746.0,0.00031803,2]
[407799456,1772808652356,-4373.34,0.000319,7]
[407799457,1772808652365,-306.0,0.000319,2]
[407799458,1772808652375,-25014.7329079,0.00032,120]
[407799459,1772808652384,-160.0,0.00032,120]
[407799460,1772808652393,-1033.93,0.00032,120]
[407799461,1772808652402,-171.46,0.00032085,7]
[407799462,1772808652411,-171.46,0.00032085,7]
[407799463,1772808652420,-171.46,0.00032085,7]
[407799464,1772808652429,-171.46,0.00032085,7]
[407799465,1772808652439,-175.33508358,0.000321,5]
[407799466,1772808652449,-3595.63,0.000322,7]
[407799467,1772808652458,-437.76933228,0.00032322,2]
[407799468,1772808652468,-1000.0,0.00032322,2]
[407799469,1772808652477,-233.10896394,0.00032324,2]
[407799470,1772808652486,-151.0,0.00032324,2]
[407799471,1772808652495,-160.0,0.00032347,11]
[407799472,1772808652504,-825.0,0.00032383,60]
[407799473,1772808652513,-171.43380902,0.00032577,2]
[407799474,1772808652522,-160.0,0.00032729,11]
[407799475,1772808652532,-2000.0,0.000328,7]
[407799476,1772808652541,-151.0,0.00032872,2]
[407799477,1772808652550,-309.0,0.00032877,2]
[407799478,1772808652560,-242.97460664,0.0003293,7]
[407799479,1772808652570,-563.075186,0.00033,14]
[407799480,1772808652579,-512.433351,0.00033118,120]
[407799481,1772808652588,-3578.57991839,0.00033121,39]
[407799482,1772808652598,-152.0,0.00033261,3]
[407799483,1772808652607,-151.0,0.0003342,2]
[407799484,1772808652616,-844.0,0.00033689,11]
[407799485,1772808652625,-944.05,0.000338,30]
[407799486,1772808652634,-939.97,0.00033855,30]
[407799487,1772808652643,-4373.34,0.000339,14]
[407799488,1772808652654,-151.0,0.00033968,2]
[407799489,1772808652663,-14099.29598962,0.00034,4]
[407799490,1772808652675,-2000.0,0.00034,2]
[407799491,1772808652686,-152.0,0.000343,4]
[407799492,1772808652696,-151.0,0.00034516,2]
[407799493,1772808652706,-1102.1,0.00034621,60]
[407799494,1772808652717,-1500.0,0.00034795,2]
[407799495,1772808652729,-3595.63,0.000348,14]
[407799496,1772808652738,-400.0,0.000348,100]
[407799497,1772808652747,-150.0,0.00034803,2]
[407799498,1772808652756,-150.0,0.00034803,2]
[407799499,1772808652766,-150.0,0.00034803,2]
[407799500,1772808652777,-150.0,0.00034803,2]
[407799501,1772808652788,-150.0,0.00034803,2]
[407799502,1772808652796,-150.0,0.00034803,2]
[407799503,1772808652805,-1042.0,0.00034803,2]
[407799504,1772808652815,-619.0,0.00034803,2]
[407799505,1772808652825,-1341.0,0.00034803,2]
[407799506,1772808652835,-150.0,0.00034803,2]
[407799507,1772808652844,-1279.0,0.00034803,2]
[407799508,1772808652853,-3746.0,0.00034803,2]
[407799509,1772808652862,-825.0,0.00034859,90]
[407799510,1772808652871,-388.04272933,0.0003488,120]
[407799511,1772808652881,-499.99999901,0.00035,2]
[407799512,1772808652895,-340000.0,0.00035,4]
[407799513,1772808652904,-700.63241713,0.00035,30]
[407799514,1772808652913,-151.0,0.00035,5]
[407799515,1772808652922,-300.0,0.00035,30]
[407799516,1772808652936,-330.0,0.00035,30]
[407799517,1772808652946,-20000.0,0.00035,120]
[407799518,1772808652957,-200.0,0.00035,3]
[407799519,1772808652967,-1000.0,0.00035,7]
[407799520,1772808652975,-1000.0,0.00035061,2]
[407799521,1772808652984,-151.0,0.00035064,2]
[407799522,1772808652994,-200.0,0.00035089,37]
[407799523,1772808653003,-400.0,0.000351,100]
[407799524,1772808653012,-1033.93,0.000352,120]
[407799525,1772808653022,-152.0,0.00035339,5]
[407799526,1772808653032,-186.59739324,0.00035589,120]
[407799527,1772808653042,-349.87011233,0.00035589,120]
[407799528,1772808653051,-441.81,0.00035598,30]
[407799529,1772808653060,-4373.34,0.000356,14]
[407799530,1772808653068,-10674.48940349,0.0003561,2]
[407799531,1772808653078,-151.0,0.00035612,2]
[407799532,1772808653087,-683.77515311,0.00035616,120]
[407799533,1772808653097,-502.85763941,0.00035616,7]
[407799534,1772808653107,-502.85763941,0.00035616,7]
[407799535,1772808653118,-502.85763941,0.00035616,7]
[407799536,1772808653128,-502.85763941,0.00035616,7]
[407799537,1772808653136,-502.85763941,0.00035616,7]
[407799538,1772808653145,-502.85763941,0.00035616,7]
[407799539,1772808653154,-502.85763941,0.00035616,7]
[407799540,1772808653163,-502.85763941,0.00035616,7]
[407799541,1772808653173,-502.85763941,0.00035616,7]
[407799542,1772808653183,-502.85763941,0.00035616,7]
[407799543,1772808653192,-502.85763941,0.00035616,7]
[407799544,1772808653201,-502.85763941,0.00035616,7]
[407799545,1772808653212,-502.85763941,0.00035616,7]
[407799546,1772808653222,-502.85763941,0.00035616,7]
[407799547,1772808653231,-502.85763941,0.00035616,7]
[407799548,1772808653240,-502.85763941,0.00035616,7]
[407799549,1772808653249,-502.85763941,0.00035616,7]
[407799550,1772808653259,-521.14337174,0.00035616,7]
[407799551,1772808653268,-521.14337174,0.00035616,7]
[407799552,1772808653279,-521.14337174,0.00035616,7]
[407799553,1772808653289,-521.14337174,0.00035616,7]
[407799554,1772808653299,-521.14337174,0.00035616,7]
[407799555,1772808653308,-521.14337174,0.00035616,7]
[407799556,1772808653317,-521.14337174,0.00035616,7]
[407799557,1772808653327,-521.14337174,0.00035616,7]
[407799558,1772808653336,-521.14337174,0.00035616,7]
[407799559,1772808653345,-521.14337174,0.00035616,7]
[407799560,1772808653354,-606.34301153,0.00035616,7]
[407799561,1772808653364,-151.0,0.00035616,7]
[407799562,1772808653373,-300.544298,0.00035616,7]
[407799563,1772808653382,-195.12270387,0.00035616,2]
[407799564,1772808653391,-1000.0,0.00035616,10]
[407799565,1772808653401,-1000.0,0.00035616,10]
[407799566,1772808653410,-1000.0,0.00035616,10]
[407799567,1772808653419,-1000.0,0.00035616,10]
[407799568,1772808653428,-1000.0,0.00035616,10]
[407799569,1772808653437,-1000.0,0.00035616,10]
[407799570,1772808653446,-1000.0,0.00035616,10]
[407799571,1772808653456,-1000.0,0.00035616,10]
[407799572,1772808653465,-1000.0,0.00035616,10]
[407799573,1772808653474,-1000.0,0.00035616,10]
[407799574,1772808653483,-1000.0,0.00035616,10]
[407799575,1772808653492,-1000.0,0.00035616,10]
[407799576,1772808653501,-1000.0,0.00035616,10]
[407799577,1772808653510,-192.61,0.00035616,2]
[407799578,1772808653519,-1000.0,0.00035616,10]
[407799579,1772808653529,-1000.0,0.00035616,10]
[407799580,1772808653540,-1000.0,0.00035616,10]
[407799581,1772808653549,-1000.0,0.00035616,10]
[407799582,1772808653559,-1000.0,0.00035616,10]
[407799583,1772808653568,-1000.0,0.00035616,10]